fUST/lending_fUST_20250729
["ID","MTS","AMOUNT","RATE_DAILY","PERIOD"]
[375818113,1753752668682,-151.0,0.00020547,2]
[375818115,1753752668692,-460.0,0.00020547,2]
[375818117,1753752668701,-460.0,0.00020547,2]
[375818119,1753752668710,-1968.01,0.00020547,2]
[375818121,1753752668720,-460.0,0.00020547,2]
[375818123,1753752668729,-460.0,0.00020547,2]
[375818125,1753752668739,-492.33,0.00020547,2]
[375818127,1753752668749,-460.0,0.00020547,2]
[375818129,1753752668758,-460.0,0.00020547,2]
[375818131,1753752668768,-340.56360507,0.00020547,2]
[375818133,1753752668778,-460.0,0.00020547,2]
[375818135,1753752668787,-460.0,0.00020547,2]
[375818137,1753752668797,-460.0,0.00020547,2]
[375818139,1753752668806,-460.0,0.00020547,2]
[375818141,1753752668815,-460.0,0.00020547,2]
[375818143,1753752668825,-1365.02,0.00020547,2]
[375818145,1753752668834,-462.32364681,0.00020547,2]
[375818147,1753752668844,-460.0,0.00020547,2]
[375818149,1753752668853,-460.0,0.00020547,2]
[375818151,1753752668863,-460.0,0.00020547,2]
[375818153,1753752668873,-550.82,0.00020547,2]
[375818155,1753752668883,-460.0,0.00020547,2]
[375818157,1753752668892,-460.0,0.00020547,2]
[375818159,1753752668901,-460.0,0.00020547,2]
[375818161,1753752668912,-460.0,0.00020547,2]
[375818163,1753752668922,-460.0,0.00020547,2]
[375818165,1753752668934,-460.0,0.00020547,2]
[375818167,1753752668944,-465.82977782,0.00020547,2]
[375818169,1753752668953,-460.0,0.00020547,2]
[375818171,1753752668962,-460.0,0.00020547,2]
[375818173,1753752668972,-460.0,0.00020547,2]
[375818175,1753752668982,-281.50547557,0.00020547,2]
[375818177,1753752668993,-460.0,0.00020547,2]
[375818180,1753752669002,-460.0,0.00020547,2]
[375818182,1753752669012,-460.0,0.00020547,2]
[375818184,1753752669022,-785.64,0.00020547,2]
[375818185,1753752669032,-460.0,0.00020547,2]
[375818188,1753752669042,-460.0,0.00020547,2]
[375818190,1753752669051,-151.0,0.00020547,2]
[375818192,1753752669060,-460.0,0.00020547,2]
[375818194,1753752669070,-460.0,0.00020547,2]
[375818195,1753752669079,-460.0,0.00020547,2]
[375818198,1753752669089,-151.0,0.00020547,2]
[375818200,1753752669099,-151.0,0.00020547,2]
[375818202,1753752669109,-1422.21,0.00020547,2]
[375818204,1753752669118,-460.0,0.00020547,2]
[375818206,1753752669127,-460.0,0.00020547,2]
[375818207,1753752669137,-151.0,0.00020547,2]
[375818208,1753752669146,-460.0,0.00020547,2]
[375818210,1753752669156,-460.0,0.00020547,2]
[375818212,1753752669165,-460.0,0.00020547,2]
[375818214,1753752669175,-460.0,0.00020547,2]
[375818216,1753752669184,-204.82885784,0.00020547,2]
[375818218,1753752669193,-460.0,0.00020547,2]
[375818220,1753752669203,-460.0,0.00020547,2]
[375818222,1753752669212,-460.0,0.00020547,2]
[375818224,1753752669222,-151.0,0.00020547,2]
[375818226,1753752669231,-460.0,0.00020547,2]
[375818228,1753752669241,-475.75,0.00020547,2]
[375818230,1753752669252,-460.0,0.00020547,2]
[375818231,1753752669262,-460.0,0.00020547,2]
[375818233,1753752669271,-460.0,0.00020547,2]
[375818236,1753752669281,-460.0,0.00020547,2]
[375818237,1753752669290,-527.57354801,0.00020547,2]
[375818239,1753752669300,-460.0,0.00020547,2]
[375818241,1753752669309,-151.0,0.00020547,2]
[375818243,1753752669319,-151.0,0.00020547,2]
[375818246,1753752669329,-151.0,0.00020547,2]
[375818248,1753752669339,-460.0,0.00020547,2]
[375818250,1753752669348,-460.0,0.00020547,2]
[375818251,1753752669358,-460.0,0.00020547,2]
[375818253,1753752669368,-460.0,0.00020547,2]
[375818255,1753752669377,-460.0,0.00020547,2]
[375818257,1753752669387,-460.0,0.00020547,2]
[375818259,1753752669397,-460.0,0.00020547,2]
[375818261,1753752669407,-487.360106,0.00020547,2]
[375818263,1753752669416,-460.0,0.00020547,2]
[375818265,1753752669426,-460.0,0.00020547,2]
[375818267,1753752669436,-460.0,0.00020547,2]
[375818269,1753752669446,-859.76,0.00020547,2]
[375818271,1753752669456,-460.0,0.00020547,2]
[375818273,1753752669466,-460.0,0.00020547,2]
[375818275,1753752669477,-165.16198679,0.00020547,2]
[375818277,1753752669487,-460.0,0.00020547,2]
[375818279,1753752669497,-574.93,0.00020547,2]
[375818281,1753752669507,-460.0,0.00020547,2]
[375818283,1753752669516,-460.0,0.00020547,2]
[375818285,1753752669526,-185.638173,0.00020547,2]
[375818287,1753752669536,-185.638173,0.00020547,2]
[375818289,1753752669546,-460.0,0.00020547,2]
[375818291,1753752669555,-460.0,0.00020547,2]
[375818293,1753752669565,-494.72,0.00020547,2]
[375818295,1753752669574,-460.0,0.00020547,2]
[375818297,1753752669584,-460.0,0.00020547,2]
[375818298,1753752669593,-460.0,0.00020547,2]
[375818300,1753752669602,-460.0,0.00020547,2]
[375818302,1753752669612,-460.0,0.00020547,2]
[375818304,1753752669621,-460.0,0.00020547,2]
[375818306,1753752669631,-460.0,0.00020547,2]
[375818308,1753752669640,-353.65032653,0.00020547,2]
[375818310,1753752669650,-460.0,0.00020547,2]
[375818312,1753752669660,-460.0,0.00020547,2]
[375818314,1753752669670,-2117.07,0.00020547,2]
[375818316,1753752669679,-460.0,0.00020547,2]
[375818318,1753752669688,-460.0,0.00020547,2]
[375818320,1753752669698,-460.0,0.00020547,2]
[375818322,1753752669708,-460.0,0.00020547,2]
[375818324,1753752669718,-460.0,0.00020547,2]
[375818326,1753752669728,-460.0,0.00020547,2]
[375818328,1753752669737,-491.92,0.00020547,2]
[375818330,1753752669747,-460.0,0.00020547,2]
[375818332,1753752669758,-460.0,0.00020547,2]
[375818334,1753752669768,-151.0,0.00020547,2]
[375818336,1753752669777,-785.01,0.00020547,2]
[375818338,1753752669787,-460.0,0.00020547,2]
[375818340,1753752669796,-460.0,0.00020547,2]
[375818342,1753752669807,-460.0,0.00020547,2]
[375818344,1753752669816,-460.0,0.00020547,2]
[375818346,1753752669826,-460.0,0.00020547,2]
[375818348,1753752669836,-460.0,0.00020547,2]
[375818350,1753752669845,-460.0,0.00020547,2]
[375818352,1753752669855,-460.0,0.00020547,2]
[375818354,1753752669864,-460.0,0.00020547,2]
[375818356,1753752669874,-460.0,0.00020547,2]
[375818358,1753752669884,-460.0,0.00020547,2]
[375818360,1753752669893,-460.0,0.00020547,2]
[375818361,1753752669902,-460.0,0.00020547,2]
[375818363,1753752669912,-720.65,0.00020547,2]
[375818365,1753752669921,-460.0,0.00020547,2]
[375818367,1753752669933,-460.0,0.00020547,2]
[375818369,1753752669943,-460.0,0.00020547,2]
[375818371,1753752669952,-460.0,0.00020547,2]
[375818373,1753752669962,-460.0,0.00020547,2]
[375818375,1753752669972,-460.0,0.00020547,2]
[375818377,1753752669983,-460.0,0.00020547,2]
[375818379,1753752669993,-460.0,0.00020547,2]
[375818381,1753752670003,-460.0,0.00020547,2]
[375818383,1753752670013,-460.0,0.00020547,2]
[375818385,1753752670022,-489.59,0.00020547,2]
[375818387,1753752670032,-569.47,0.00020547,2]
[375818388,1753752670041,-151.0,0.00020547,2]
[375818390,1753752670051,-525.55,0.00020547,2]
[375818392,1753752670060,-582.58,0.00020547,2]
[375818394,1753752670070,-1270.5,0.00020547,2]
[375818396,1753752670079,-460.0,0.00020547,2]
[375818398,1753752670089,-460.0,0.00020547,2]
[375818400,1753752670098,-460.0,0.00020547,2]
[375818402,1753752670107,-586.58,0.00020547,2]
[375818404,1753752670117,-2436.08,0.00020547,2]
[375818406,1753752670126,-460.0,0.00020547,2]
[375818408,1753752670136,-460.0,0.00020547,2]
[375818410,1753752670146,-596.4,0.00020547,2]
[375818412,1753752670156,-460.0,0.00020547,2]
[375818414,1753752670165,-460.0,0.00020547,2]
[375818416,1753752670175,-460.0,0.00020547,2]
[375818418,1753752670185,-460.0,0.00020547,2]
[375818420,1753752670195,-460.0,0.00020547,2]
[375818422,1753752670205,-460.0,0.00020547,2]
[375818424,1753752670215,-544.35,0.00020547,2]
[375818426,1753752670224,-590.38,0.00020547,2]
[375818428,1753752670235,-460.0,0.00020547,2]
[375818430,1753752670245,-520.82,0.00020547,2]
[375818432,1753752670255,-2017.54,0.00020547,2]
[375818434,1753752670263,-460.0,0.00020547,2]
[375818435,1753752670273,-460.0,0.00020547,2]
[375818437,1753752670282,-460.0,0.00020547,2]
[375818439,1753752670292,-460.0,0.00020547,2]
[375818441,1753752670302,-460.0,0.00020547,2]
[375818443,1753752670311,-460.0,0.00020547,2]
[375818445,1753752670321,-464.60663523,0.00020547,2]
[375818448,1753752670331,-854.2,0.00020547,2]
[375818450,1753752670342,-493.48910538,0.00020547,2]
[375818451,1753752670351,-522.16,0.00020547,2]
[375818453,1753752670360,-151.0,0.00020547,2]
[375818455,1753752670370,-460.0,0.00020547,2]
[375818457,1753752670379,-460.0,0.00020547,2]
[375818459,1753752670389,-460.0,0.00020547,2]
[375818461,1753752670398,-460.0,0.00020547,2]
[375818463,1753752670407,-151.0,0.00020547,2]
[375818465,1753752670418,-460.0,0.00020547,2]
[375818467,1753752670427,-2860.37,0.00020547,2]
[375818469,1753752670437,-483.5,0.00020547,2]
[375818471,1753752670446,-460.0,0.00020547,2]
[375818473,1753752670456,-460.0,0.00020547,2]
[375818476,1753752670470,-460.0,0.00020547,2]
[375818477,1753752670480,-460.0,0.00020547,2]
[375818479,1753752670490,-460.0,0.00020547,2]
[375818481,1753752670503,-460.0,0.00020547,2]
[375818483,1753752670513,-460.0,0.00020547,2]
[375818485,1753752670523,-460.0,0.00020547,2]
[375818487,1753752670532,-460.0,0.00020547,2]
[375818489,1753752670542,-460.0,0.00020547,2]
[375818491,1753752670552,-460.0,0.00020547,2]
[375818493,1753752670562,-637.4,0.00020547,2]
[375818495,1753752670572,-460.0,0.00020547,2]
[375818497,1753752670582,-460.0,0.00020547,2]
[375818499,1753752670592,-591.09,0.00020547,2]
[375818501,1753752670605,-460.0,0.00020547,2]
[375818503,1753752670615,-582.84,0.00020547,2]
[375818505,1753752670625,-2318.39,0.00020547,2]
[375818507,1753752670634,-230.251478,0.00020547,2]
[375818509,1753752670644,-460.0,0.00020547,2]
[375818511,1753752670653,-460.0,0.00020547,2]
[375818513,1753752670663,-230.251478,0.00020547,2]
[375818515,1753752670673,-460.0,0.00020547,2]
[375818517,1753752670683,-596.83,0.00020547,2]
[375818519,1753752670693,-460.0,0.00020547,2]
[375818521,1753752670702,-460.0,0.00020547,2]
[375818523,1753752670712,-460.0,0.00020547,2]
[375818525,1753752670722,-460.0,0.00020547,2]
[375818527,1753752670732,-460.0,0.00020547,2]
[375818542,1753752670869,-460.0,0.00020547,2]
[375818544,1753752670879,-460.0,0.00020547,2]
[375818546,1753752670889,-460.0,0.00020547,2]
[375818548,1753752670899,-969.39,0.00020547,2]
[375818550,1753752670909,-807.22,0.00020547,2]
[375818552,1753752670922,-460.0,0.00020547,2]
[375818554,1753752670934,-1743.8,0.00020547,2]
[375818556,1753752670945,-1979.08,0.00020547,2]
[375818558,1753752670955,-5668.89,0.00020547,2]
[375818560,1753752670965,-6855.59,0.00020547,2]
[375818562,1753752670976,-577.15,0.00020547,2]
[375818564,1753752670986,-460.0,0.00020547,2]
[375818566,1753752670996,-460.0,0.00020547,2]
[375818568,1753752671007,-467.58750791,0.00020547,2]
[375818570,1753752671017,-460.0,0.00020547,2]
[375818572,1753752671027,-606.45,0.00020547,2]
[375818574,1753752671036,-266.13110123,0.00020547,2]
[375818576,1753752671046,-469.62,0.00020547,2]
[375818578,1753752671055,-460.0,0.00020547,2]
[375818580,1753752671065,-947.8,0.00020547,2]
[375818581,1753752671074,-462.35587766,0.00020547,2]
[375818584,1753752671085,-492.89,0.00020547,2]
[375818586,1753752671095,-460.0,0.00020547,2]
[375818587,1753752671105,-460.0,0.00020547,2]
[375818589,1753752671115,-2139.79,0.00020547,2]
[375818591,1753752671125,-460.0,0.00020547,2]
[375818593,1753752671134,-460.0,0.00020547,2]
[375818595,1753752671144,-460.0,0.00020547,2]
[375818597,1753752671154,-425.83894147,0.00020547,2]
[375818599,1753752671163,-575.97609992,0.00020547,2]
[375818601,1753752671174,-515.36,0.00020547,2]
[375818603,1753752671183,-460.0,0.00020547,2]
[375818605,1753752671194,-757.1,0.00020547,2]
[375818607,1753752671203,-460.0,0.00020547,2]
[375818609,1753752671213,-460.0,0.00020547,2]
[375818611,1753752671223,-802.5,0.00020547,2]
[375818613,1753752671232,-460.0,0.00020547,2]
[375818615,1753752671241,-460.0,0.00020547,2]
[375818617,1753752671252,-460.0,0.00020547,2]
[375818619,1753752671261,-261.73747813,0.00020547,2]
[375818621,1753752671271,-460.0,0.00020547,2]
[375818623,1753752671280,-460.0,0.00020547,2]
[375818625,1753752671290,-818.01,0.00020547,2]
[375818626,1753752671299,-385.13183963,0.00020547,2]
[375818628,1753752671309,-195.96621464,0.00020548,2]
[375818630,1753752671318,-289.0,0.00020548,2]
[375818632,1753752671328,-500.0,0.00020548,2]
[375818633,1753752671337,-195.36597427,0.00020548,2]
[375818634,1753752671347,-151.0,0.00020568,2]
[375818635,1753752671356,-1500.0,0.00020568,2]
[375818636,1753752671366,-510.63255838,0.00020568,2]
[375818637,1753752671376,-1500.0,0.00020568,2]
[375818638,1753752671387,-1006.95001152,0.00020568,2]
[375818639,1753752671397,-200.0,0.00020686,2]
[375818640,1753752671407,-160.0,0.00020719,2]
[375818641,1753752671417,-2000.0,0.00020786,2]
[375818642,1753752671427,-151.0,0.00020821,2]
[375818643,1753752671437,-460.0,0.00020821,2]
[375818644,1753752671446,-460.0,0.00020821,2]
[375818645,1753752671456,-460.0,0.00020821,2]
[375818646,1753752671466,-253.18,0.00020821,2]
[375818647,1753752671476,-1968.01,0.00020821,2]
[375818648,1753752671486,-460.0,0.00020821,2]
[375818649,1753752671497,-492.33,0.00020821,2]
[375818650,1753752671507,-460.0,0.00020821,2]
[375818651,1753752671517,-460.0,0.00020821,2]
[375818652,1753752671526,-460.0,0.00020821,2]
[375818653,1753752671536,-460.0,0.00020821,2]
[375818655,1753752671545,-460.0,0.00020821,2]
[375818657,1753752671555,-460.0,0.00020821,2]
[375818659,1753752671565,-1365.02,0.00020821,2]
[375818661,1753752671575,-460.0,0.00020821,2]
[375818663,1753752671585,-460.0,0.00020821,2]
[375818665,1753752671596,-550.82,0.00020821,2]
[375818667,1753752671605,-460.0,0.00020821,2]
[375818669,1753752671615,-460.0,0.00020821,2]
[375818670,1753752671625,-460.0,0.00020821,2]
[375818672,1753752671636,-460.0,0.00020821,2]
[375818674,1753752671646,-460.0,0.00020821,2]
[375818676,1753752671656,-460.0,0.00020821,2]
[375818678,1753752671666,-460.0,0.00020821,2]
[375818680,1753752671676,-460.0,0.00020821,2]
[375818682,1753752671686,-460.0,0.00020821,2]
[375818684,1753752671695,-460.0,0.00020821,2]
[375818686,1753752671705,-785.64,0.00020821,2]
[375818688,1753752671714,-460.0,0.00020821,2]
[375818690,1753752671733,-460.0,0.00020821,2]
[375818692,1753752671743,-460.0,0.00020821,2]
[375818694,1753752671753,-329.89337639,0.00020821,2]
[375818696,1753752671763,-1422.21,0.00020821,2]
[375818698,1753752671772,-460.0,0.00020821,2]
[375818700,1753752671782,-464.35056706,0.00020821,2]
[375818702,1753752671791,-460.0,0.00020821,2]
[375818704,1753752671800,-460.0,0.00020821,2]
[375818706,1753752671809,-460.0,0.00020821,2]
[375818708,1753752671819,-151.0,0.00020821,2]
[375818710,1753752671828,-460.0,0.00020821,2]
[375818711,1753752671838,-151.0,0.00020821,2]
[375818713,1753752671848,-460.0,0.00020821,2]
[375818715,1753752671857,-475.75,0.00020821,2]
[375818717,1753752671866,-460.0,0.00020821,2]
[375818719,1753752671875,-460.0,0.00020821,2]
[375818721,1753752671885,-460.0,0.00020821,2]
[375818723,1753752671894,-460.0,0.00020821,2]
[375818725,1753752671903,-460.0,0.00020821,2]
[375818727,1753752671914,-460.0,0.00020821,2]
[375818729,1753752671924,-460.0,0.00020821,2]
[375818731,1753752671937,-435.22072442,0.00020821,2]
[375818733,1753752671947,-460.0,0.00020821,2]
[375818735,1753752671956,-480.61498555,0.00020821,2]
[375818737,1753752671967,-162.67292324,0.00020821,2]
[375818739,1753752671977,-460.0,0.00020821,2]
[375818741,1753752671987,-156.87123587,0.00020821,2]
[375818743,1753752671997,-859.76,0.00020821,2]
[375818745,1753752672008,-460.0,0.00020821,2]
[375818747,1753752672028,-460.0,0.00020821,2]
[375818749,1753752672037,-460.0,0.00020821,2]
[375818751,1753752672046,-574.93,0.00020821,2]
[375818753,1753752672056,-460.0,0.00020821,2]
[375818755,1753752672065,-460.0,0.00020821,2]
[375818757,1753752672074,-460.0,0.00020821,2]
[375818759,1753752672084,-460.0,0.00020821,2]
[375818761,1753752672093,-494.72,0.00020821,2]
[375818763,1753752672102,-460.0,0.00020821,2]
[375818765,1753752672111,-460.0,0.00020821,2]
[375818766,1753752672120,-460.0,0.00020821,2]
[375818769,1753752672130,-460.0,0.00020821,2]
[375818770,1753752672140,-460.0,0.00020821,2]
[375818772,1753752672150,-460.0,0.00020821,2]
[375818774,1753752672159,-401.62842738,0.00020821,2]
[375818776,1753752672169,-460.0,0.00020821,2]
[375818778,1753752672178,-2117.07,0.00020821,2]
[375818780,1753752672188,-510.74391998,0.00020821,2]
[375818782,1753752672197,-460.0,0.00020821,2]
[375818784,1753752672206,-460.0,0.00020821,2]
[375818786,1753752672215,-460.0,0.00020821,2]
[375818788,1753752672225,-460.0,0.00020821,2]
[375818790,1753752672234,-460.0,0.00020821,2]
[375818792,1753752672244,-151.0,0.00020821,2]
[375818794,1753752672253,-491.92,0.00020821,2]
[375818796,1753752672263,-460.0,0.00020821,2]
[375818798,1753752672272,-460.0,0.00020821,2]
[375818800,1753752672281,-785.01,0.00020821,2]
[375818802,1753752672290,-460.0,0.00020821,2]
[375818804,1753752672300,-460.0,0.00020821,2]
[375818806,1753752672309,-460.0,0.00020821,2]
[375818807,1753752672318,-460.0,0.00020821,2]
[375818809,1753752672328,-460.0,0.00020821,2]
[375818811,1753752672337,-460.0,0.00020821,2]
[375818813,1753752672346,-460.0,0.00020821,2]
[375818815,1753752672356,-460.0,0.00020821,2]
[375818817,1753752672365,-460.0,0.00020821,2]
[375818819,1753752672374,-460.0,0.00020821,2]
[375818821,1753752672383,-460.0,0.00020821,2]
[375818823,1753752672394,-460.0,0.00020821,2]
[375818825,1753752672404,-460.0,0.00020821,2]
[375818827,1753752672413,-720.65,0.00020821,2]
[375818829,1753752672422,-460.0,0.00020821,2]
[375818831,1753752672431,-460.0,0.00020821,2]
[375818833,1753752672440,-460.0,0.00020821,2]
[375818835,1753752672449,-460.0,0.00020821,2]
[375818837,1753752672459,-460.0,0.00020821,2]
[375818839,1753752672468,-460.0,0.00020821,2]
[375818841,1753752672477,-460.0,0.00020821,2]
[375818842,1753752672486,-460.0,0.00020821,2]
[375818844,1753752672496,-460.0,0.00020821,2]
[375818846,1753752672505,-489.59,0.00020821,2]
[375818848,1753752672514,-569.47,0.00020821,2]
[375818850,1753752672524,-525.55,0.00020821,2]
[375818852,1753752672533,-582.58,0.00020821,2]
[375818854,1753752672543,-1270.5,0.00020821,2]
[375818856,1753752672552,-462.65300059,0.00020821,2]
[375818858,1753752672562,-460.0,0.00020821,2]
[375818860,1753752672571,-586.58,0.00020821,2]
[375818862,1753752672581,-2436.08,0.00020821,2]
[375818864,1753752672590,-460.0,0.00020821,2]
[375818866,1753752672599,-460.0,0.00020821,2]
[375818868,1753752672609,-596.4,0.00020821,2]
[375818870,1753752672618,-460.0,0.00020821,2]
[375818872,1753752672628,-460.0,0.00020821,2]
[375818874,1753752672638,-460.0,0.00020821,2]
[375818876,1753752672648,-460.0,0.00020821,2]
[375818878,1753752672660,-544.35,0.00020821,2]
[375818880,1753752672670,-590.38,0.00020821,2]
[375818882,1753752672681,-460.0,0.00020821,2]
[375818884,1753752672692,-520.82,0.00020821,2]
[375818886,1753752672701,-460.0,0.00020821,2]
[375818888,1753752672711,-2017.54,0.00020821,2]
[375818890,1753752672720,-460.0,0.00020821,2]
[375818892,1753752672729,-460.0,0.00020821,2]
[375818893,1753752672739,-460.0,0.00020821,2]
[375818895,1753752672748,-854.2,0.00020821,2]
[375818897,1753752672758,-522.16,0.00020821,2]
[375818899,1753752672768,-460.0,0.00020821,2]
[375818901,1753752672779,-460.0,0.00020821,2]
[375818903,1753752672788,-157.51340759,0.00020821,2]
[375818905,1753752672798,-2860.37,0.00020821,2]
[375818907,1753752672808,-483.5,0.00020821,2]
[375818909,1753752672817,-460.0,0.00020821,2]
[375818911,1753752672828,-460.0,0.00020821,2]
[375818913,1753752672837,-460.95523495,0.00020821,2]
[375818915,1753752672847,-460.0,0.00020821,2]
[375818917,1753752672857,-460.0,0.00020821,2]
[375818919,1753752672867,-460.0,0.00020821,2]
[375818921,1753752672877,-460.0,0.00020821,2]
[375818923,1753752672886,-460.0,0.00020821,2]
[375818925,1753752672896,-460.0,0.00020821,2]
[375818927,1753752672907,-460.0,0.00020821,2]
[375818929,1753752672917,-637.4,0.00020821,2]
[375818931,1753752672929,-460.0,0.00020821,2]
[375818933,1753752672940,-460.0,0.00020821,2]
[375818935,1753752672950,-591.09,0.00020821,2]
[375818937,1753752672959,-543.18304701,0.00020821,2]
[375818939,1753752672969,-582.84,0.00020821,2]
[375818941,1753752672980,-2318.39,0.00020821,2]
[375818943,1753752672989,-460.0,0.00020821,2]
[375818944,1753752672999,-460.0,0.00020821,2]
[375818946,1753752673009,-460.0,0.00020821,2]
[375818948,1753752673018,-596.83,0.00020821,2]
[375818950,1753752673029,-460.0,0.00020821,2]
[375818952,1753752673039,-460.0,0.00020821,2]
[375818954,1753752673049,-460.0,0.00020821,2]
[375818956,1753752673059,-460.0,0.00020821,2]
[375818958,1753752673069,-460.0,0.00020821,2]
[375818960,1753752673079,-460.0,0.00020821,2]
[375818962,1753752673088,-460.0,0.00020821,2]
[375818964,1753752673098,-460.0,0.00020821,2]
[375818966,1753752673109,-969.39,0.00020821,2]
[375818968,1753752673119,-807.22,0.00020821,2]
[375818970,1753752673130,-1743.8,0.00020821,2]
[375818972,1753752673140,-1979.08,0.00020821,2]
[375818974,1753752673150,-5668.89,0.00020821,2]
[375818976,1753752673159,-6855.59,0.00020821,2]
[375818978,1753752673169,-577.15,0.00020821,2]
[375818980,1753752673178,-460.0,0.00020821,2]
[375818982,1753752673188,-460.0,0.00020821,2]
[375818984,1753752673198,-460.0,0.00020821,2]
[375818986,1753752673209,-606.45,0.00020821,2]
[375818988,1753752673219,-469.62,0.00020821,2]
[375818990,1753752673228,-460.0,0.00020821,2]
[375818992,1753752673238,-947.8,0.00020821,2]
[375818994,1753752673248,-151.0,0.00020821,2]
[375818996,1753752673258,-492.89,0.00020821,2]
[375818998,1753752673267,-460.0,0.00020821,2]
[375819000,1753752673277,-460.0,0.00020821,2]
[375819002,1753752673287,-460.0,0.00020821,2]
[375819004,1753752673297,-2139.79,0.00020821,2]
[375819006,1753752673307,-460.0,0.00020821,2]
[375819008,1753752673317,-460.0,0.00020821,2]
[375819010,1753752673327,-267.336701,0.00020821,2]
[375819012,1753752673336,-515.36,0.00020821,2]
[375819014,1753752673346,-460.0,0.00020821,2]
[375819016,1753752673355,-757.1,0.00020821,2]
[375819018,1753752673365,-610.348551,0.00020821,2]
[375819020,1753752673375,-466.32690639,0.00020821,2]
[375819022,1753752673384,-267.336701,0.00020821,2]
[375819024,1753752673394,-802.5,0.00020821,2]
[375819026,1753752673406,-610.348551,0.00020821,2]
[375819028,1753752673416,-151.0,0.00020821,2]
[375819030,1753752673425,-467.82381552,0.00020821,2]
[375819032,1753752673435,-460.0,0.00020821,2]
[375819034,1753752673445,-151.0,0.00020821,2]
[375819035,1753752673454,-460.0,0.00020821,2]
[375819037,1753752673465,-465.36574311,0.00020821,2]
[375819040,1753752673474,-460.0,0.00020821,2]
[375819041,1753752673484,-818.01,0.00020821,2]
[375819043,1753752673495,-460.0,0.00020821,2]
[375819045,1753752673505,-500.0,0.00020822,2]
[375819047,1753752673515,-3000.0,0.00020889,2]
[375819049,1753752673525,-275.77658133,0.00020903,2]
[375819051,1753752673534,-4000.0,0.00020982,2]
[375819053,1753752673543,-151.0,0.00020982,2]
[375819055,1753752673552,-151.0,0.00020982,2]
[375819057,1753752673562,-151.0,0.00020982,2]
[375819059,1753752673572,-6043.09150686,0.00020995,2]
[375819061,1753752673582,-5000.0,0.00021049,3]
[375819063,1753752673592,-312.16666667,0.00021049,3]
[375819065,1753752673601,-160.0,0.00021049,3]
[375819067,1753752673610,-151.0,0.00021049,2]
[375819069,1753752673620,-214.87999826,0.00021049,3]
[375819071,1753752673629,-12634.73134317,0.00021049,3]
[375819073,1753752673639,-5000.0,0.00021053,2]
[375819075,1753752673649,-500.0,0.00021068,2]
[375819077,1753752673658,-155.0,0.00021086,2]
[375819079,1753752673668,-151.0,0.00021095,2]
[375819081,1753752673678,-405.28395478,0.00021095,2]
[375819083,1753752673688,-460.0,0.00021095,2]
[375819085,1753752673697,-460.0,0.00021095,2]
[375819087,1753752673707,-1968.01,0.00021095,2]